[Event "WYCC U16 Girls 2019"]
[Site "Mumbai"]
[Date "2019.10.02"]
[Round "1.12"]
[White "Divyabharathi Masanam"]
[Black "Hajiyeva, Laman"]
[Result "1/2-1/2"]
[ECO "C01"]
[WhiteElo "1636"]
[BlackElo "2038"]
[Annotator "NA"]
[PlyCount "94"]
[EventDate "2019.10.02"]
[EventType "swiss"]
[EventCountry "IND"]
[SourceTitle "playchess.com"]
[Source "ChessBase"]
[SourceQuality "1"]
[TimeControl "40/5400+30:1800+30"]

1. e4 {[%emt 0:00:59]} e6 {[%emt 0:00:00]} 2. d4 {[%emt 0:00:52]} d5 {[%emt 0:00:00]} 3. exd5 {[%emt 0:00:54]} exd5 {[%emt 0:00:00]} 4. Nf3 {[%emt 0:00:06]} Nf6 {[%emt 0:00:00]} 5. Bd3 {[%emt 0:00:10]} c5 {[%emt 0:00:10]} 6. dxc5 {[%emt 0:03:57]} Bxc5 {[%emt 0:00:11]} 7. O-O {[%emt 0:00:08]} O-O {[%emt 0:00:12]} 8. c3 {[%emt 0:00:47]} Nc6 {[%emt 0:00:43]} 9. Nbd2 {[%emt 0:01:15]} Re8 {[%emt 0:11:16]} 10. Nb3 {[%emt 0:05:34]} Bb6 {[%emt 0:01:48]} 11. h3 {[%emt 0:02:56]} Ne4 {[%emt 0:04:39]} 12. Bc2 {[%emt 0:06:12]} h6 {[%emt 0:14:37]} 13. Nbd4 {[%emt 0:09:04]} Qf6 {[%emt 0:09:56]} 14. Bb3 {[%emt 0:07:13]} Be6 {[%emt 0:13:09]} 15. Be3 {[%emt 0:07:45]} Rad8 {[%emt 0:04:54]} 16. Nxe6 {[%emt 0:05:33]} fxe6 {[%emt 0:00:33]} 17. Bxb6 {[%emt 0:00:07]} axb6 {[%emt 0:00:07]} 18. Qe2 {[%emt 0:04:00]} Kh8 {[%emt 0:06:50]} 19. Rad1 {[%emt 0:03:35]} Nc5 {[%emt 0:04:08]} 20. Qb5 {[%emt 0:04:04]} Ne7 {[%emt 0:11:01]} 21. Qxb6 {[%emt 0:06:08]} Nxb3 {[%emt 0:00:05]} 22. axb3 {[%emt 0:00:23]} Ng6 {[%emt 0:00:45]} 23. Rfe1 {[%emt 0:04:16]} Nf4 {[%emt 0:06:51]} 24. Qe3 {[%emt 0:02:16]} Rf8 {[%emt 0:00:58]} 25. Ne5 {[%emt 0:00:33]} Kh7 {[%emt 0:06:00]} 26. Nd3 {[%emt 0:07:44]} Nxd3 {[%emt 0:00:07]} 27. Qxd3+ {[%emt 0:00:05]} Kh8 {[%emt 0:00:17]} 28. Qd4 {[%emt 0:00:34]} Qg6 {[%emt 0:00:48]} 29. Re3 {[%emt 0:02:17]} Rf6 {[%emt 0:00:19]} 30. Qd3 {[%emt 0:01:25]} Qf7 {[%emt 0:02:16]} 31. f3 {[%emt 0:01:20]} Qc7 {[%emt 0:00:36]} 32. Qd4 {[%emt 0:01:03]} Rg6 {[%emt 0:00:51]} 33. Re5 {[%emt 0:00:51]} Rf8 {[%emt 0:00:48]} 34. Rf1 {[%emt 0:01:26]} Qa5 {[%emt 0:00:59]} 35. b4 {[%emt 0:01:07]} Qa2 {[%emt 0:00:29]} 36. Qd3 {[%emt 0:01:12]} Rff6 {[%emt 0:00:24]} 37. Qe2 {[%emt 0:00:13]} Qa4 {[%emt 0:00:46]} 38. Re1 {[%emt 0:00:46]} Qc6 {[%emt 0:00:28]} 39. Qd3 {[%emt 0:01:24]} Qc7 {[%emt 0:00:35]} 40. Qe3 {[%emt 0:01:29]} Qf7 {[%emt 0:00:26]} 41. Kf2 {[%emt 0:31:09]} Qd7 {[%emt 0:30:33]} 42. Qd3 {[%emt 0:01:02]} Qa4 {[%emt 0:00:00]} 43. g4 {[%emt 0:00:00]} Qa2 {[%emt 0:00:00]} 44. R1e2 {[%emt 0:00:00]} Qa4 {[%emt 0:00:00]} 45. Kg2 {[%emt 0:00:00]} Qc6 {[%emt 0:00:00]} 46. b5 {[%emt 0:00:00]} Qc5 {[%emt 0:00:00]} 47. b3 {[%emt 0:00:00]} Qa3 {[%emt 0:00:00]} 1/2-1/2

[Event "WYCC U16 Girls 2019"]
[Site "Mumbai"]
[Date "2019.10.03"]
[Round "2.1"]
[White "Golsta, Madara"]
[Black "Garifullina, Leya"]
[Result "0-1"]
[ECO "B92"]
[WhiteElo "1987"]
[BlackElo "2330"]
[Annotator "NA"]
[PlyCount "80"]
[EventDate "2019.10.02"]
[EventType "swiss"]
[EventCountry "IND"]
[SourceTitle "playchess.com"]
[Source "ChessBase"]
[SourceQuality "1"]
[TimeControl "40/5400+30:1800+30"]

1. e4 {[%emt 0:00:00]} c5 {[%emt 0:00:00]} 2. Nf3 {[%emt 0:00:00]} d6 {[%emt 0:00:00]} 3. d4 {[%emt 0:00:08]} cxd4 {[%emt 0:00:24]} 4. Nxd4 {[%emt 0:00:07]} Nf6 {[%emt 0:00:11]} 5. Nc3 {[%emt 0:00:18]} a6 {[%emt 0:00:30]} 6. Be2 {[%emt 0:00:30]} e5 {[%emt 0:00:16]} 7. Nf3 {[%emt 0:00:17]} Be7 {[%emt 0:00:28]} 8. Bg5 {[%emt 0:00:40]} Nbd7 {[%emt 0:04:39]} 9. a4 {[%emt 0:00:34]} h6 {[%emt 0:02:23]} 10. Be3 {[%emt 0:00:14]} Qa5 {[%emt 0:05:54]} 11. Nd2 {[%emt 0:06:52]} Qc7 {[%emt 0:01:43]} 12. Nc4 {[%emt 0:07:32]} Nc5 {[%emt 0:04:10]} 13. a5 {[%emt 0:21:35]} Be6 {[%emt 0:04:31]} 14. Nb6 {[%emt 0:01:52]} Rd8 {[%emt 0:00:25]} 15. Bf3 {[%emt 0:01:18]} Qc6 {[%emt 0:03:42]} 16. O-O {[%emt 0:06:15]} O-O {[%emt 0:10:39]} 17. Re1 {[%emt 0:04:22]} Rfe8 {[%emt 0:09:49]} 18. Ra3 {[%emt 0:06:41]} Ncxe4 {[%emt 0:11:01]} 19. Nxe4 {[%emt 0:05:40]} Nxe4 {[%emt 0:00:06]} 20. Bxe4 {[%emt 0:04:21]} Qxe4 {[%emt 0:00:07]} 21. Bxh6 {[%emt 0:01:50]} Qh7 {[%emt 0:01:03]} 22. Bc1 {[%emt 0:02:34]} d5 {[%emt 0:02:05]} 23. Ra4 {[%emt 0:08:59]} Bf6 {[%emt 0:04:39]} 24. Rb4 {[%emt 0:06:32]} d4 {[%emt 0:02:58]} 25. Qe2 {[%emt 0:03:46]} Qg6 {[%emt 0:04:10]} 26. Qe4 {[%emt 0:03:08]} Bf5 {[%emt 0:03:25]} 27. Qxb7 {[%emt 0:00:23]} e4 {[%emt 0:00:37]} 28. Nd5 {[%emt 0:03:21]} e3 {[%emt 0:03:31]} 29. Nxf6+ {[%emt 0:00:31]} Qxf6 {[%emt 0:01:01]} 30. f3 {[%emt 0:00:25]} Bxc2 {[%emt 0:01:43]} 31. Rb6 {[%emt 0:00:52]} Qf5 {[%emt 0:02:14]} 32. Qc7 {[%emt 0:01:49]} Ba4 {[%emt 0:03:08]} 33. Rxa6 {[%emt 0:01:48]} Rc8 {[%emt 0:00:20]} 34. Qd6 {[%emt 0:00:41]} Rxc1 {[%emt 0:00:29]} 35. Rxc1 {[%emt 0:00:06]} d3 {[%emt 0:00:02]} 36. Qd4 {[%emt 0:01:11]} d2 {[%emt 0:00:55]} 37. Ra1 {[%emt 0:00:04]} d1=R+ {[%emt 0:00:42]} 38. Rxd1 {[%emt 0:00:05]} Bxd1 {[%emt 0:00:04]} 39. Qxd1 {[%emt 0:00:04]} e2 {[%emt 0:00:03]} 40. Qe1 {[%emt 0:00:12]} Qc5+ {[%emt 0:00:02]} 0-1

[Event "WYCC U16 Girls 2019"]
[Site "Mumbai"]
[Date "2019.10.03"]
[Round "2.2"]
[White "Beydullayeva, Govhar"]
[Black "Demchenko, Svitlana"]
[Result "1/2-1/2"]
[ECO "E68"]
[WhiteElo "2289"]
[BlackElo "1953"]
[Annotator "ChessBase"]
[PlyCount "133"]
[EventDate "2019.10.02"]
[EventType "swiss"]
[EventCountry "IND"]
[SourceTitle "playchess.com"]
[Source "ChessBase"]
[SourceQuality "1"]
[TimeControl "40/5400+30:1800+30"]

1. d4 {[%emt 0:00:00]} Nf6 {[%emt 0:00:00]} 2. c4 {[%emt 0:00:00]} g6 {[%emt 0:00:00]} 3. Nf3 {[%emt 0:00:00]} Bg7 {[%emt 0:00:00]} 4. g3 {[%emt 0:00:00]} d6 {[%emt 0:00:05]} 5. Nc3 {[%emt 0:00:02]} O-O {[%emt 0:00:12]} 6. Bg2 {[%emt 0:00:03]} Nbd7 {[%emt 0:00:19]} 7. O-O {[%emt 0:00:13]} e5 {[%emt 0:00:08]} 8. e4 {[%emt 0:00:06]} exd4 {[%emt 0:00:23]} 9. Nxd4 {[%emt 0:02:09]} Re8 {[%emt 0:00:11]} 10. h3 {[%emt 0:01:39]} Nc5 {[%emt 0:00:14]} 11. Re1 {[%emt 0:01:31]} Bd7 {[%emt 0:00:10]} 12. f3 {[%emt 0:08:16]} Qc8 {[%emt 0:09:42]} 13. Kh2 {[%emt 0:01:45]} h5 {[%emt 0:05:57]} 14. Be3 {[%emt 0:03:45]} h4 {[%emt 0:07:24]} 15. g4 {[%emt 0:01:51]} Nh7 {[%emt 0:03:06]} 16. Qd2 {[%emt 0:10:06]} c6 {[%emt 0:11:09]} 17. Rad1 {[%emt 0:06:09]} f5 {[%emt 0:03:46]} 18. exf5 {[%emt 0:09:04]} gxf5 {[%emt 0:00:43]} 19. g5 {[%emt 0:03:18]} Nf8 {[%emt 0:09:06]} 20. Nde2 {[%emt 0:10:29]} Qc7 {[%emt 0:11:03]} 21. Kh1 {[%emt 0:02:02]} Be6 {[%emt 0:02:48]} 22. b3 {[%emt 0:06:49]} Rad8 {[%emt 0:00:16]} 23. Nf4 {[%emt 0:09:06]} Bf7 {[%emt 0:01:35]} 24. Bd4 {[%emt 0:09:02]} Be5 {[%emt 0:05:25]} 25. g6 {[%emt 0:09:50]} Bxg6 {[%emt 0:03:45]} 26. Nxg6 {[%emt 0:00:55]} Nxg6 {[%emt 0:02:23]} 27. Qg5 {[%emt 0:03:16]} Kg7 {[%emt 0:07:06]} 28. Bxe5+ {[%emt 0:01:34]} dxe5 {[%emt 0:00:26]} 29. Qxf5 {[%emt 0:00:28]} Qf7 {[%emt 0:04:00]} 30. Qc2 {[%emt 0:00:17]} Ne6 {[%emt 0:01:08]} 31. Ne4 {[%emt 0:01:10]} Nd4 {[%emt 0:01:00]} 32. Qf2 {[%emt 0:00:10]} Qf4 {[%emt 0:01:29]} 33. Rg1 {[%emt 0:00:28]} b6 {[%emt 0:02:46]} 34. c5 {[%emt 0:00:50]} Rf8 {[%emt 0:01:18]} 35. Qd2 {[%emt 0:00:26]} Qxd2 {[%emt 0:05:38]} 36. Rxd2 {[%emt 0:00:06]} Rf4 {[%emt 0:00:08]} 37. Ng5 {[%emt 0:00:45]} Kh6 {[%emt 0:00:55]} 38. Bf1 {[%emt 0:00:44]} Ne6 {[%emt 0:01:44]} 39. Rdg2 {[%emt 0:00:29]} Nxg5 {[%emt 0:00:30]} 40. Rxg5 {[%emt 0:00:00]} Rf6 {[%emt 0:00:03]} 41. cxb6 {[%emt 0:08:40]} axb6 {[%emt 0:00:45]} 42. a4 {[%emt 0:03:03]} Rdd6 {[%emt 0:03:09]} 43. Be2 {[%emt 0:02:08]} c5 {[%emt 0:03:27]} 44. Bd1 {[%emt 0:07:25]} Rd2 {[%emt 0:06:40]} 45. f4 {[%emt 0:04:26]} exf4 {[%emt 0:03:52]} 46. Bf3 {[%emt 0:02:37]} Rd4 {[%emt 0:05:42]} 47. Rh5+ {[%emt 0:01:55]} Kg7 {[%emt 0:00:05]} 48. Rhg5 {[%emt 0:00:07]} Re6 {[%emt 0:03:45]} 49. Bh5 {[%emt 0:02:33]} Rdd6 {[%emt 0:00:58]} 50. Kh2 {[%emt 0:02:38]} Kh6 {[%emt 0:02:47]} 51. Bxg6 {[%emt 0:00:20]} Rxg6 {[%emt 0:00:23]} 52. R5g4 {[%emt 0:00:26]} Rd2+ {[%emt 0:01:58]} 53. Kh1 {[%emt 0:00:24]} Rxg4 {[%emt 0:00:32]} 54. Rxg4 {[%emt 0:00:00]} f3 {[%emt 0:02:33]} 55. Rxh4+ {[%emt 0:01:06]} Kg5 {[%emt 0:00:05]} 56. Rg4+ {[%emt 0:00:02]} Kf5 {[%emt 0:00:13]} 57. Kg1 {[%emt 0:00:09]} Rb2 {[%emt 0:01:29]} 58. Rc4 {[%emt 0:00:44]} Rxb3 {[%emt 0:01:41]} 59. a5 {[%emt 0:00:03]} bxa5 {[%emt 0:00:43]} 60. Rxc5+ {[%emt 0:00:03]} Kf4 {[%emt 0:00:15]} 61. Rxa5 {[%emt 0:00:51]} Rb1+ {[%emt 0:00:16]} 62. Kf2 {[%emt 0:00:06]} Rb2+ {[%emt 0:00:05]} 63. Kf1 {[%emt 0:00:10]} Rb1+ {[%emt 0:01:07]} 64. Kf2 {[%emt 0:00:01]} Rb2+ {[%emt 0:00:01]} 65. Kf1 {[%emt 0:00:06]} Kg3 {[%emt 0:01:09]} 66. Rg5+ {[%emt 0:00:04]} Kxh3 {[%emt 0:00:16]} 67. Rg8 {[%emt 0:00:29]} 1/2-1/2

[Event "WYCC U16 Girls 2019"]
[Site "Mumbai"]
[Date "2019.10.03"]
[Round "2.3"]
[White "Savitha Shri B"]
[Black "Mrudul Dehankar"]
[Result "1/2-1/2"]
[ECO "A05"]
[WhiteElo "1916"]
[BlackElo "2227"]
[Annotator "NA"]
[PlyCount "162"]
[EventDate "2019.10.02"]
[EventType "swiss"]
[EventCountry "IND"]
[SourceTitle "playchess.com"]
[Source "ChessBase"]
[SourceQuality "1"]
[TimeControl "40/5400+30:1800+30"]

1. Nf3 Nf6 2. g3 b5 3. Bg2 Bb7 4. O-O e6 5. d3 Be7 6. e4 d6 7. Nd4 a6 8. Nb3 c6 9. a4 Nbd7 10. Nc3 O-O 11. d4 Qc7 12. Bf4 e5 13. Bg5 b4 14. Ne2 c5 15. d5 Nxd5 16. Bxe7 Nxe7 17. c4 Nc6 18. Qd3 Nd4 19. Nd2 f5 20. exf5 Bxg2 21. Kxg2 Qb7+ 22. f3 e4 23. Nxe4 Ne5 24. Qd1 Nexf3 25. Nxd4 Nxd4 26. Qd3 Rae8 27. Rae1 Re5 28. g4 Rfe8 29. Rf4 b3 30. Kf2 Rf8 31. Nxc5 Qb4 32. Ne4 Ne6 33. Rf3 Nc5 34. Qd4 Rfe8 35. Rfe3 Nxe4+ 36. Rxe4 Rxe4 37. Rxe4 Rxe4 38. Qxe4 Qd2+ 39. Qe2 Qd4+ 40. Kg2 Kf8 41. Kf3 g6 42. fxg6 hxg6 43. Kg3 Kg7 44. g5 Qg1+ 45. Kh4 Qd4+ 46. Kh3 Kg8 47. Qe8+ Kg7 48. Qe7+ Kg8 49. Qe6+ Kg7 50. Qd7+ Kf8 51. Qc8+ Ke7 52. Qb7+ Ke8 53. Qxb3 Qf4 54. Qb8+ Kd7 55. Qb7+ Kd8 56. Qa8+ Kc7 57. Qa7+ Kd8 58. Qb6+ Ke8 59. Qc6+ Kd8 60. Qb6+ Ke8 61. Qg1 Qxc4 62. Qe3+ Kf7 63. b3 Qd5 64. Kg3 Kg7 65. Qc3+ Kh7 66. Qe3 a5 67. h4 Kg7 68. Qc3+ Kh7 69. Qf3 Qe5+ 70. Kg2 Qe7 71. Kf2 Qa7+ 72. Qe3 Qf7+ 73. Kg3 Qc7 74. Qf4 Qc3+ 75. Qf3 Qe5+ 76. Kg2 Kg7 77. Qb7+ Kg8 78. Qc8+ Kg7 79. Qb7+ Kg8 80. Qf3 Kg7 81. Qb7+ Kg8 1/2-1/2

[Event "WYCC U16 Girls 2019"]
[Site "Mumbai"]
[Date "2019.10.03"]
[Round "2.4"]
[White "Nurgali, Nazerke"]
[Black "Maione, Melissa"]
[Result "1-0"]
[ECO "A56"]
[WhiteElo "2194"]
[BlackElo "1912"]
[Annotator "NA"]
[PlyCount "61"]
[EventDate "2019.10.02"]
[EventType "swiss"]
[EventCountry "IND"]
[SourceTitle "playchess.com"]
[Source "ChessBase"]
[SourceQuality "1"]
[TimeControl "40/5400+30:1800+30"]

1. d4 {[%emt 0:00:00]} Nf6 {[%emt 0:00:00]} 2. c4 {[%emt 0:00:00]} c5 {[%emt 0:00:00]} 3. d5 {[%emt 0:00:11]} g6 {[%emt 0:00:30]} 4. Nc3 {[%emt 0:00:36]} Bg7 {[%emt 0:00:18]} 5. e4 {[%emt 0:00:43]} O-O {[%emt 0:00:26]} 6. Nf3 {[%emt 0:00:47]} e6 {[%emt 0:00:24]} 7. Bd3 {[%emt 0:00:51]} exd5 {[%emt 0:00:28]} 8. cxd5 {[%emt 0:00:10]} d6 {[%emt 0:00:19]} 9. h3 {[%emt 0:00:15]} Nh5 {[%emt 0:00:43]} 10. O-O {[%emt 0:01:41]} Nd7 {[%emt 0:00:36]} 11. Bg5 {[%emt 0:03:23]} Bf6 {[%emt 0:00:44]} 12. Bh6 {[%emt 0:01:35]} Re8 {[%emt 0:06:09]} 13. Re1 {[%emt 0:03:06]} Ne5 {[%emt 0:08:31]} 14. Be2 {[%emt 0:01:17]} Nxf3+ {[%emt 0:03:49]} 15. Bxf3 {[%emt 0:00:06]} Ng7 {[%emt 0:00:36]} 16. Qd2 {[%emt 0:02:53]} Be5 {[%emt 0:07:44]} 17. Be2 {[%emt 0:06:33]} f5 {[%emt 0:06:13]} 18. Bd3 {[%emt 0:01:00]} a6 {[%emt 0:13:53]} 19. a4 {[%emt 0:04:23]} Qf6 {[%emt 0:02:10]} 20. f4 {[%emt 0:06:24]} Bd4+ {[%emt 0:02:17]} 21. Kh2 {[%emt 0:00:16]} Nh5 {[%emt 0:06:05]} 22. Bg5 {[%emt 0:02:21]} Qg7 {[%emt 0:01:52]} 23. exf5 {[%emt 0:04:58]} Bxf5 {[%emt 0:01:49]} 24. Bxf5 {[%emt 0:00:09]} gxf5 {[%emt 0:00:13]} 25. Rxe8+ {[%emt 0:06:44]} Rxe8 {[%emt 0:00:50]} 26. Re1 {[%emt 0:00:11]} Qg6 {[%emt 0:05:31]} 27. Rxe8+ {[%emt 0:03:19]} Qxe8 {[%emt 0:00:07]} 28. Ne2 {[%emt 0:00:09]} Bg7 {[%emt 0:13:11]} 29. g4 {[%emt 0:06:08]} fxg4 {[%emt 0:04:24]} 30. hxg4 {[%emt 0:00:06]} h6 {[%emt 0:00:44]} 31. Bh4 {[%emt 0:00:29]} 1-0

[Event "WYCC U16 Girls 2019"]
[Site "Mumbai"]
[Date "2019.10.03"]
[Round "2.5"]
[White "Jarocka, Liwia"]
[Black "Bulatova, Kamaliya"]
[Result "1/2-1/2"]
[ECO "C06"]
[WhiteElo "1899"]
[BlackElo "2181"]
[Annotator "NA"]
[PlyCount "51"]
[EventDate "2019.10.02"]
[EventType "swiss"]
[EventCountry "IND"]
[SourceTitle "playchess.com"]
[Source "ChessBase"]
[SourceQuality "1"]
[TimeControl "40/5400+30:1800+30"]

1. e4 e6 {[%emt 0:00:00]} 2. d4 {[%emt 0:00:00]} d5 {[%emt 0:00:00]} 3. Nd2 {[%emt 0:00:00]} Nf6 {[%emt 0:00:00]} 4. e5 {[%emt 0:00:00]} Nfd7 {[%emt 0:00:00]} 5. Bd3 {[%emt 0:00:02]} c5 {[%emt 0:00:00]} 6. c3 {[%emt 0:00:06]} Nc6 {[%emt 0:00:07]} 7. Ne2 {[%emt 0:00:07]} cxd4 {[%emt 0:00:06]} 8. cxd4 {[%emt 0:00:07]} f6 {[%emt 0:00:13]} 9. exf6 {[%emt 0:00:12]} Nxf6 {[%emt 0:00:05]} 10. O-O {[%emt 0:00:33]} Bd6 {[%emt 0:00:08]} 11. Nf3 {[%emt 0:00:11]} Qc7 {[%emt 0:00:06]} 12. Bg5 {[%emt 0:00:33]} O-O {[%emt 0:00:19]} 13. Bh4 {[%emt 0:00:21]} Nh5 {[%emt 0:00:52]} 14. Qc2 {[%emt 0:01:07]} h6 {[%emt 0:00:36]} 15. Bh7+ {[%emt 0:00:20]} Kh8 {[%emt 0:00:07]} 16. Bg6 {[%emt 0:00:21]} Rxf3 {[%emt 0:01:45]} 17. Bxh5 {[%emt 0:00:20]} Rf8 {[%emt 0:00:43]} 18. Bg3 {[%emt 0:01:48]} Bd7 {[%emt 0:02:38]} 19. Rad1 {[%emt 0:21:04]} Rac8 {[%emt 0:09:29]} 20. Nc3 {[%emt 0:02:20]} Ne7 {[%emt 0:10:01]} 21. Bg4 {[%emt 0:15:13]} Nf5 {[%emt 0:11:47]} 22. Bxd6 {[%emt 0:07:41]} Qxd6 {[%emt 0:06:02]} 23. Qe2 {[%emt 0:02:29]} a6 {[%emt 0:10:46]} 24. Rfe1 {[%emt 0:03:53]} b5 {[%emt 0:05:51]} 25. Qe5 {[%emt 0:09:15]} Qb6 {[%emt 0:05:44]} 26. Ne2 {[%emt 0:02:53]} 1/2-1/2

[Event "WYCC U16 Girls 2019"]
[Site "Mumbai"]
[Date "2019.10.03"]
[Round "2.6"]
[White "Loskutova, Viktoriya"]
[Black "Lakshmi C"]
[Result "0-1"]
[ECO "B33"]
[WhiteElo "2149"]
[BlackElo "1859"]
[Annotator "NA"]
[PlyCount "80"]
[EventDate "2019.10.02"]
[EventType "swiss"]
[EventCountry "IND"]
[SourceTitle "playchess.com"]
[Source "ChessBase"]
[SourceQuality "1"]
[TimeControl "40/5400+30:1800+30"]

1. e4 {[%emt 0:00:00]} c5 {[%emt 0:00:00]} 2. Nf3 {[%emt 0:00:00]} Nc6 {[%emt 0:00:05]} 3. d4 {[%emt 0:00:00]} cxd4 {[%emt 0:00:05]} 4. Nxd4 {[%emt 0:00:00]} Nf6 {[%emt 0:00:06]} 5. Nc3 {[%emt 0:00:05]} e5 {[%emt 0:00:08]} 6. Ndb5 {[%emt 0:00:05]} d6 {[%emt 0:00:07]} 7. Bg5 {[%emt 0:00:26]} a6 {[%emt 0:00:11]} 8. Na3 {[%emt 0:00:07]} b5 {[%emt 0:00:06]} 9. Bxf6 {[%emt 0:00:15]} gxf6 {[%emt 0:00:08]} 10. Nd5 {[%emt 0:00:07]} Bg7 {[%emt 0:00:08]} 11. Bd3 {[%emt 0:01:25]} Ne7 {[%emt 0:00:19]} 12. Nxe7 {[%emt 0:02:10]} Qxe7 {[%emt 0:00:05]} 13. Qf3 {[%emt 0:04:34]} d5 {[%emt 0:08:46]} 14. O-O {[%emt 0:04:25]} f5 {[%emt 0:08:16]} 15. Qg3 {[%emt 0:11:05]} O-O {[%emt 0:18:17]} 16. f3 {[%emt 0:19:52]} b4 {[%emt 0:05:39]} 17. Nb1 {[%emt 0:00:13]} Kh8 {[%emt 0:01:23]} 18. Nd2 {[%emt 0:06:53]} Bh6 {[%emt 0:03:18]} 19. Qf2 {[%emt 0:04:26]} fxe4 {[%emt 0:18:31]} 20. fxe4 {[%emt 0:02:26]} f5 {[%emt 0:00:21]} 21. exd5 {[%emt 0:10:09]} e4 {[%emt 0:00:52]} 22. Bc4 {[%emt 0:00:04]} Bxd2 {[%emt 0:02:52]} 23. Qd4+ {[%emt 0:05:36]} Rf6 {[%emt 0:00:45]} 24. Qxd2 {[%emt 0:06:50]} Qc5+ 25. Kh1 {[%emt 0:00:30]} Qxc4 26. Qg5 {[%emt 0:00:30]} Qd4 27. Rad1 {[%emt 0:00:30]} Qe5 28. a3 {[%emt 0:00:30]} bxa3 29. bxa3 {[%emt 0:00:30]} Bd7 30. c4 {[%emt 0:00:30]} Rg8 31. Qh4 {[%emt 0:00:30]} Rg4 32. Qh3 {[%emt 0:00:30]} Kg7 33. Qe3 {[%emt 0:00:30]} Rh6 34. h3 {[%emt 0:00:30]} f4 35. Qa7 {[%emt 0:00:30]} Qf5 36. Qd4+ {[%emt 0:00:30]} Kf7 37. Rf2 {[%emt 0:00:30]} Rxg2 38. Rxg2 {[%emt 0:00:30]} Qxh3+ 39. Kg1 {[%emt 0:00:30]} Qh1+ 40. Kf2 {[%emt 0:00:30]} e3+ 0-1

[Event "WYCC U16 Girls 2019"]
[Site "Mumbai"]
[Date "2019.10.03"]
[Round "2.7"]
[White "Bristy Mukherjee"]
[Black "Mahdian, Anousha"]
[Result "1/2-1/2"]
[ECO "D98"]
[WhiteElo "1852"]
[BlackElo "2103"]
[Annotator "NA"]
[PlyCount "44"]
[EventDate "2019.10.02"]
[EventType "swiss"]
[EventCountry "IND"]
[SourceTitle "playchess.com"]
[Source "ChessBase"]
[SourceQuality "1"]
[TimeControl "40/5400+30:1800+30"]

1. d4 {[%emt 0:00:00]} Nf6 {[%emt 0:00:00]} 2. c4 {[%emt 0:00:00]} g6 {[%emt 0:00:00]} 3. Nc3 {[%emt 0:00:00]} d5 {[%emt 0:00:00]} 4. Nf3 {[%emt 0:00:20]} Bg7 {[%emt 0:00:11]} 5. Qb3 {[%emt 0:00:19]} dxc4 {[%emt 0:00:19]} 6. Qxc4 {[%emt 0:00:05]} O-O {[%emt 0:00:26]} 7. e4 {[%emt 0:00:38]} Bg4 {[%emt 0:00:27]} 8. Be3 {[%emt 0:05:53]} Nfd7 {[%emt 0:02:11]} 9. Nd2 {[%emt 0:11:16]} Nb6 {[%emt 0:05:23]} 10. Qd3 {[%emt 0:01:05]} Nc6 {[%emt 0:10:25]} 11. Nb3 {[%emt 0:05:31]} a5 {[%emt 0:06:11]} 12. f3 {[%emt 0:02:21]} a4 {[%emt 0:09:26]} 13. Nc5 {[%emt 0:01:47]} Bc8 {[%emt 0:00:50]} 14. Rd1 {[%emt 0:01:13]} e6 {[%emt 0:14:18]} 15. Qd2 {[%emt 0:13:14]} Qe7 {[%emt 0:03:13]} 16. e5 {[%emt 0:06:49]} Rd8 {[%emt 0:05:39]} 17. Qf2 {[%emt 0:01:54]} Nd5 {[%emt 0:02:37]} 18. Nxd5 {[%emt 0:03:26]} exd5 {[%emt 0:00:28]} 19. Bb5 {[%emt 0:04:24]} Na5 {[%emt 0:13:11]} 20. Nxa4 {[%emt 0:06:20]} Qb4+ {[%emt 0:02:56]} 21. Nc3 {[%emt 0:00:07]} c6 {[%emt 0:02:09]} 22. Bd3 {[%emt 0:01:14]} c5 {[%emt 0:02:05]} 1/2-1/2

[Event "WYCC U16 Girls 2019"]
[Site "Mumbai"]
[Date "2019.10.03"]
[Round "2.8"]
[White "Srdanovic, Jovana"]
[Black "Tomcikova, Dominika"]
[Result "1-0"]
[ECO "A96"]
[WhiteElo "2100"]
[BlackElo "1845"]
[Annotator "NA"]
[PlyCount "34"]
[EventDate "2019.10.02"]
[EventType "swiss"]
[EventCountry "IND"]
[SourceTitle "playchess.com"]
[Source "ChessBase"]
[SourceQuality "1"]
[TimeControl "40/5400+30:1800+30"]

1. d4 e6 2. Nf3 f5 3. g3 Nf6 4. Bg2 Be7 5. O-O O-O 6. c4 d6 7. Nc3 Ne4 8. Qc2 Nxc3 9. bxc3 Nc6 10. Rd1 Na5 11. Qa4 b6 12. Ne5 Rb8 13. Nc6 Bd7 14. d5 Bxc6 15. dxc6 Bf6 16. Rd3 Qe8 17. Ba3 Be7 1-0

[Event "WYCC U16 Girls 2019"]
[Site "Mumbai"]
[Date "2019.10.03"]
[Round "2.9"]
[White "Tang, En Xin Esther"]
[Black "Salonika, Saina"]
[Result "0-1"]
[ECO "B54"]
[WhiteElo "1832"]
[BlackElo "2051"]
[Annotator "NA"]
[PlyCount "91"]
[EventDate "2019.10.02"]
[EventType "swiss"]
[EventCountry "IND"]
[SourceTitle "playchess.com"]
[Source "ChessBase"]
[SourceQuality "1"]
[TimeControl "40/5400+30:1800+30"]

1. e4 c5 2. Nf3 d6 3. d4 cxd4 4. Nxd4 Nf6 5. Bd3 g6 6. c4 Bg7 7. Nc3 Nc6 8. Nc2 O-O 9. O-O Ne5 10. Be2 Bd7 11. Be3 Rc8 12. Na3 Be6 13. b3 Qa5 14. Nab1 Nc6 15. Bd2 Qe5 16. f3 Nd7 17. Bc1 Qd4+ 18. Kh1 Nc5 19. Bb2 Nb4 20. Qxd4 Bxd4 21. Rd1 Nc2 22. b4 Nd7 23. a3 Bxc3 24. Nxc3 Nxa1 25. Bxa1 Bxc4 26. Bxc4 Rxc4 27. Kg1 Nb6 28. Kf2 Ra8 29. Ke3 a5 30. Kd3 axb4 31. axb4 Rxb4 32. Kc2 Kf8 33. Bb2 Na4 34. Nxa4 Rbxa4 35. Kb3 R4a6 36. Rd2 Rb6+ 37. Kc3 Ra2 38. g3 Ke8 39. f4 Kd7 40. e5 Rbxb2 41. Rxb2 Rxb2 42. Kxb2 dxe5 43. fxe5 Ke6 44. Kc3 Kxe5 45. Kd3 b5 46. Kc3 0-1

[Event "WYCC U16 Girls 2019"]
[Site "Mumbai"]
[Date "2019.10.03"]
[Round "2.10"]
[White "Zhang, Cindy"]
[Black "Jain Nityata"]
[Result "1/2-1/2"]
[ECO "B54"]
[WhiteElo "1808"]
[BlackElo "2029"]
[Annotator "NA"]
[PlyCount "38"]
[EventDate "2019.10.02"]
[EventType "swiss"]
[EventCountry "IND"]
[SourceTitle "playchess.com"]
[Source "ChessBase"]
[SourceQuality "1"]
[TimeControl "40/5400+30:1800+30"]

1. e4 {[%emt 0:00:00]} c5 {[%emt 0:00:00]} 2. Nf3 {[%emt 0:00:00]} d6 {[%emt 0:00:00]} 3. d4 {[%emt 0:00:00]} cxd4 {[%emt 0:00:00]} 4. Nxd4 {[%emt 0:00:01]} Nf6 {[%emt 0:00:00]} 5. Bd3 {[%emt 0:00:30]} g6 {[%emt 0:02:45]} 6. c4 {[%emt 0:01:00]} Bg7 {[%emt 0:00:10]} 7. Nc3 {[%emt 0:01:09]} Nc6 {[%emt 0:01:08]} 8. Nc2 {[%emt 0:01:02]} O-O {[%emt 0:02:57]} 9. O-O {[%emt 0:02:31]} Ne5 {[%emt 0:02:43]} 10. Be2 {[%emt 0:09:31]} Bd7 {[%emt 0:05:08]} 11. Be3 {[%emt 0:05:58]} Rc8 {[%emt 0:07:39]} 12. Na3 {[%emt 0:10:51]} Be6 {[%emt 0:06:50]} 13. b3 {[%emt 0:06:04]} Qa5 {[%emt 0:06:02]} 14. Nab1 {[%emt 0:02:13]} Nc6 {[%emt 0:07:05]} 15. Bd2 {[%emt 0:04:18]} Qe5 {[%emt 0:01:11]} 16. f3 {[%emt 0:03:00]} Nd7 {[%emt 0:10:45]} 17. Bc1 {[%emt 0:06:06]} Qd4+ {[%emt 0:05:32]} 18. Kh1 {[%emt 0:16:04]} Nc5 {[%emt 0:09:28]} 19. Bb2 {[%emt 0:02:10]} Nb4 {[%emt 0:06:18]} 1/2-1/2